bitfinex/quotes_BTCUSD_20260215
["timestamp","ask_amount","ask_price","bid_price","bid_amount"]
[1771180383539,0.0567881,68609.0,68591.0,0.27648]
[1771180383754,0.08220845,68618.0,68591.0,0.23252]
[1771180383956,0.07287693,68609.0,68591.0,0.23252]
[1771180384164,0.57422496,68610.0,68591.0,0.0002]
[1771180384367,0.57422496,68610.0,68577.0,0.0002]
[1771180384368,0.57422496,68601.0,68577.0,0.0002]
[1771180384578,0.0572881,68594.0,68581.0,0.06976]
[1771180384798,0.07288831,68599.0,68560.0,0.57422496]
[1771180384799,0.07290506,68583.0,68560.0,0.57422496]
[1771180385009,0.07290506,68583.0,68530.0,0.50773531]
[1771180385010,0.07290626,68582.0,68559.0,0.09336]
[1771180385215,0.0572881,68592.0,68562.0,0.0595722]
[1771180385425,0.57422496,68600.0,68560.0,0.57422496]
[1771180385426,0.0572881,68588.0,68563.0,0.23796]
[1771180385631,0.57422496,68600.0,68573.0,0.00079337]
[1771180385632,0.07290118,68586.0,68573.0,0.00079337]
[1771180385843,0.57422496,68600.0,68573.0,0.00079337]
[1771180386046,0.37248,68594.0,68573.0,0.00079337]
[1771180386465,0.0572881,68588.0,68573.0,0.00079337]
[1771180386683,0.02492035,68587.0,68573.0,0.00079337]
[1771180386887,0.02492035,68586.0,68573.0,0.00079337]
[1771180387293,0.37248,68594.0,68573.0,0.00079337]
[1771180387496,0.0572881,68592.0,68573.0,0.00079337]
[1771180387717,0.4453737,68594.0,68573.0,0.00079337]
[1771180387718,0.0572881,68590.0,68573.0,0.00079337]
[1771180387930,0.02492035,68589.0,68573.0,0.00079337]
[1771180388137,0.0572881,68608.0,68581.0,0.0595722]
[1771180388343,0.0572881,68608.0,68580.0,0.57422496]
[1771180388344,0.02492035,68607.0,68583.0,0.0595722]
[1771180388966,0.09336,68612.0,68584.0,0.09336]
[1771180388967,0.0572881,68606.0,68584.0,0.09336]
[1771180389100,0.0572881,68604.0,68584.0,0.09336]
[1771180389530,0.0572881,68604.0,68584.0,0.1529322]
[1771180389734,0.02492035,68605.0,68590.0,0.57422496]
[1771180389940,0.1506481,68612.0,68590.0,0.63329716]
[1771180390164,0.17556845,68612.0,68590.0,0.57422496]
[1771180390383,0.17556845,68612.0,68591.0,0.0595722]
[1771180390825,0.02492035,68612.0,68591.0,0.0595722]
[1771180391047,0.07326608,68620.0,68584.0,0.09286]
[1771180391048,0.0004,68620.0,68601.0,0.36171158]
[1771180391248,0.02492035,68628.0,68611.0,0.0595722]
[1771180391466,0.02492035,68628.0,68613.0,0.0595722]
[1771180391665,0.0576881,68634.0,68613.0,0.0595722]
[1771180392300,0.00052936,68627.0,68613.0,0.0595722]
[1771180392507,0.00052936,68627.0,68607.0,0.09336]
[1771180392508,0.02492035,68626.0,68607.0,0.09336]
[1771180392707,0.08220845,68625.0,68607.0,0.09336]
[1771180393019,0.08220845,68625.0,68607.0,0.1529322]
[1771180393212,0.02492035,68623.0,68608.0,0.27624]
[1771180393416,0.02492035,68623.0,68610.0,0.57422496]
[1771180393714,0.00052936,68627.0,68608.0,0.27624]
[1771180393924,0.00052936,68627.0,68610.0,0.57422496]
[1771180394130,0.00052936,68627.0,68590.0,0.57422496]
[1771180394131,0.05660691,68617.0,68590.0,0.57422496]
[1771180394322,0.00052936,68627.0,68598.0,0.27616]
[1771180394323,0.02288974,68614.0,68598.0,0.27616]
[1771180394691,0.02288974,68614.0,68600.0,0.57422496]
[1771180395245,0.00052936,68627.0,68601.0,0.05599301]
[1771180395436,0.07999665,68626.0,68601.0,0.05599301]
[1771180395688,0.00052936,68627.0,68610.0,0.57422496]
[1771180395689,0.02338974,68625.0,68610.0,0.57422496]
[1771180396249,0.00052936,68627.0,68609.0,0.2762]
[1771180396452,0.07999665,68626.0,68609.0,0.2762]
[1771180396649,0.00052936,68627.0,68609.0,0.2762]
[1771180396858,0.02338974,68626.0,68610.0,0.57422496]
[1771180397018,0.0004,68623.0,68610.0,0.57422496]
[1771180398036,0.0004,68623.0,68605.0,0.05599301]
[1771180398239,0.0004,68623.0,68606.0,0.27632]
[1771180398660,0.02378974,68623.0,68607.0,0.27628]
[1771180399311,0.02378974,68623.0,68477.0,1.29623703]
[1771180399312,0.57408385,68620.0,68581.0,0.03234816]
[1771180399514,0.05660691,68614.0,68590.0,0.57408385]
[1771180399759,0.07999665,68611.0,68590.0,0.63007686]
[1771180400034,0.02338974,68610.0,68590.0,0.63007686]
[1771180400365,0.02338974,68610.0,68591.0,0.05599301]
[1771180400573,0.05660691,68609.0,68590.0,0.57408385]
[1771180400783,0.29145214,68622.0,68592.0,0.27636]
[1771180400784,0.02338974,68606.0,68592.0,0.27636]
[1771180401134,0.02338974,68605.0,68592.0,0.27636]
[1771180401539,0.02338974,68605.0,68590.0,0.57408385]
[1771180401741,0.02338974,68605.0,68591.0,0.2764]
[1771180401944,0.02338974,68617.0,68592.0,0.05599301]
[1771180402147,0.16744,68623.0,68591.0,0.33252229]
[1771180402346,0.16744,68623.0,68591.0,0.27652928]
[1771180402347,0.05660691,68613.0,68591.0,0.27652928]
[1771180402555,0.16744,68623.0,68591.0,0.33252229]
[1771180402556,0.02338974,68610.0,68591.0,0.33252229]
[1771180402780,0.16744,68623.0,68604.0,0.0728811]
[1771180402781,0.0004,68623.0,68604.0,0.0728811]
[1771180402971,0.0004,68627.0,68610.0,0.57408385]
[1771180403151,0.0004,68627.0,68618.0,0.05599301]
[1771180403340,0.0004,68627.0,68619.0,0.27664]
[1771180404236,0.00052936,68627.0,68619.0,0.27664]
[1771180404659,0.0004,68620.0,68610.0,0.57408385]
[1771180404875,6.207e-05,68620.0,68612.0,0.05599301]
[1771180405183,0.02338974,68633.0,68613.0,0.27696]
[1771180405409,0.0004,68634.0,68612.0,0.14935301]
[1771180405410,0.07999665,68632.0,68614.0,0.277]
[1771180405607,0.02338974,68633.0,68614.0,0.277]
[1771180405781,0.02338974,68633.0,68615.0,0.05599301]
[1771180405985,0.02338974,68633.0,68621.0,0.05599301]
[1771180406193,0.0004,68634.0,68621.0,0.05599301]
[1771180406912,0.0004,68634.0,68620.0,0.57408385]
[1771180407124,0.05700691,68634.0,68610.0,0.57421321]
[1771180407319,0.05660691,68632.0,68610.0,0.57421321]
[1771180407523,0.02338974,68631.0,68612.0,0.05599301]
[1771180408133,0.05660691,68628.0,68613.0,0.27732]
[1771180408504,0.02338974,68627.0,68613.0,0.27732]
[1771180408706,0.0004,68634.0,68614.0,0.05599301]
[1771180408928,0.0004,68634.0,68618.0,0.05599301]
[1771180410477,0.0004,68634.0,68614.0,0.08397367]
[1771180410478,0.0004,68642.0,68625.0,0.05599301]
[1771180410712,0.0004,68642.0,68627.0,0.05599301]
[1771180410942,0.0004,68642.0,68631.0,0.05599301]
[1771180411437,0.0004,68646.0,68631.0,0.05599301]
[1771180411645,0.0004,68655.0,68640.0,0.05599301]
[1771180411820,0.0004,68655.0,68635.0,0.09569742]
[1771180411821,0.0004,68655.0,68645.0,0.57408385]
[1771180412242,0.00052936,68655.0,68645.0,0.57408385]
[1771180412655,0.00052936,68655.0,68631.0,0.27796]
[1771180412656,0.07739463,68654.0,68631.0,0.27796]
[1771180412861,0.05660691,68649.0,68630.0,0.57408385]
[1771180413412,0.02338974,68650.0,68630.0,0.57408385]
[1771180413618,0.02338974,68650.0,68631.0,0.05599301]
[1771180413813,0.02338974,68650.0,68632.0,0.33399301]
[1771180414018,0.05660691,68653.0,68633.0,0.05599301]
[1771180414403,0.00052936,68655.0,68633.0,0.05599301]
[1771180414619,0.00052936,68655.0,68620.0,0.57408385]
[1771180414620,0.05660691,68651.0,68620.0,0.57408385]
[1771180414890,0.05660691,68646.0,68622.0,0.05599301]
[1771180415097,0.02338974,68647.0,68630.0,0.57408385]
[1771180415320,0.05660691,68649.0,68631.0,0.27804]
[1771180415522,0.05660691,68652.0,68631.0,0.33403301]
[1771180416165,0.09621936,68654.0,68632.0,0.05599301]
[1771180416369,0.05660691,68653.0,68632.0,0.05599301]
[1771180416576,0.02338974,68654.0,68632.0,0.05599301]
[1771180416795,0.00052936,68655.0,68640.0,0.57408385]
[1771180417112,0.00052936,68655.0,68640.0,0.85228385]
[1771180417820,0.00052936,68655.0,68640.0,0.90827686]
[1771180418019,0.0004,68654.0,68641.0,0.05599301]
[1771180419520,0.07283698,68647.0,68630.0,0.27832]
[1771180419726,0.0004,68654.0,68602.0,0.02284919]
[1771180419727,0.57408385,68640.0,68602.0,0.02284919]
[1771180419939,0.07284866,68636.0,68610.0,0.57408385]
[1771180420152,0.07284607,68638.0,68611.0,0.33443301]
[1771180420564,0.05660691,68637.0,68611.0,0.33443301]
[1771180420767,0.05660691,68635.0,68611.0,0.33443301]
[1771180420894,0.05660691,68633.0,68611.0,0.33443301]
[1771180421334,0.07283851,68647.0,68620.0,0.57408385]
[1771180421719,0.05660691,68639.0,68621.0,0.27848]
[1771180421888,0.07283976,68644.0,68622.0,0.05599301]
[1771180422136,0.1294456,68645.0,68622.0,0.05599301]
[1771180422343,0.05660691,68645.0,68622.0,0.05599301]
[1771180422596,0.05660691,68637.0,68621.0,0.27848]
[1771180423417,0.02338974,68645.0,68627.0,0.57408385]
[1771180423632,0.27526583,68653.0,68627.0,0.57408385]
[1771180423633,0.05522583,68651.0,68628.0,0.06045666]
[1771180423821,0.05522583,68651.0,68629.0,0.33817336]
[1771180423822,0.05535516,68651.0,68629.0,0.33817336]
[1771180424248,0.00012933,68651.0,68630.0,0.05953336]
[1771180425642,0.00052933,68651.0,68630.0,0.05953336]
[1771180426862,0.00052933,68651.0,68640.0,0.57408385]
[1771180427066,0.00052933,68651.0,68641.0,0.33845336]
[1771180427515,0.00052933,68651.0,68642.0,0.05953336]
[1771180429558,0.0004,68655.0,68642.0,0.05953336]
[1771180429698,0.0004,68655.0,68642.0,0.05966269]
[1771180429902,0.0004,68656.0,68642.0,0.05966269]
[1771180429903,0.0004,68656.0,68644.0,0.05953336]
[1771180430140,0.0004,68656.0,68646.0,0.63361721]
[1771180430346,0.13208357,68668.0,68648.0,0.05953336]
[1771180430347,0.0004,68667.0,68648.0,0.05953336]
[1771180430553,0.0004,68667.0,68649.0,0.05953336]
[1771180431679,0.0004,68667.0,68651.0,0.05953336]
[1771180432342,0.0004,68667.0,68652.0,0.27988]
[1771180433050,0.0004,68667.0,68653.0,0.27996]
[1771180435369,0.05926843,68667.0,68653.0,0.27996]
[1771180436584,0.00052527,68661.0,68653.0,0.27996]
[1771180437149,0.0004,68667.0,68653.0,0.27996]
[1771180437351,0.0004,68667.0,68655.0,0.57408385]
[1771180437552,0.0004,68667.0,68656.0,0.28044]
[1771180437755,0.0004,68671.0,68655.0,0.57408385]
[1771180437756,0.0004,68671.0,68655.0,0.63361721]
[1771180437988,0.0004,68671.0,68655.0,0.05953336]
[1771180438187,0.0004,68671.0,68656.0,0.28052]
[1771180438385,0.0004,68671.0,68660.0,0.57408385]
[1771180439029,0.0004,68671.0,68661.0,0.28068]
[1771180439318,0.0004,68671.0,68662.0,0.05953336]
[1771180439506,0.0004,68675.0,68662.0,0.05953336]
[1771180440238,0.0004,68675.0,68661.0,0.28068]
[1771180440397,0.08174663,68674.0,68652.0,0.05953336]
[1771180440630,0.0004,68671.0,68654.0,0.05953336]
[1771180440776,0.0004,68671.0,68660.0,0.57408385]
[1771180440981,0.0004,68671.0,68661.0,0.28092]
[1771180441893,0.0004,68671.0,68660.0,0.57408385]
[1771180442101,0.0004,68671.0,68662.0,0.28112]
[1771180442269,0.0004,68671.0,68663.0,0.28116]
[1771180442688,0.0004,68671.0,68664.0,0.28116]
[1771180442856,0.0004,68675.0,68664.0,0.28116]
[1771180443061,0.00035659,68674.0,68665.0,0.05953336]
[1771180443417,0.00078761,68674.0,68665.0,0.05953336]
[1771180443546,0.00027052,68674.0,68665.0,0.05953336]
[1771180443733,0.00011002,68674.0,68665.0,0.05953336]
[1771180443936,0.0004,68678.0,68665.0,0.05953336]
[1771180444150,0.0232782,68685.0,68660.0,0.59902992]
[1771180444151,0.0004,68685.0,68670.0,0.05953336]
[1771180444348,0.0004,68685.0,68670.0,0.05966259]
[1771180444651,0.00013352,68684.0,68671.0,0.28148]
[1771180445084,0.00013352,68684.0,68668.0,0.57408385]
[1771180445352,0.00013352,68684.0,68637.0,1.45692207]
[1771180445353,0.09726843,68665.0,68606.0,0.02494607]
[1771180445601,0.09726843,68665.0,68585.0,0.09348]
[1771180445602,0.05886843,68623.0,68585.0,0.0002]
[1771180445732,0.05886843,68612.0,68590.0,0.0698]
[1771180445951,0.09328,68622.0,68601.0,0.05953336]
[1771180446316,1.032951,68620.0,68601.0,0.05953336]
[1771180446601,0.16614391,68622.0,68599.0,0.00090867]
[1771180446602,0.1317356,68619.0,68599.0,0.00090867]
[1771180446832,0.07287689,68609.0,68599.0,0.00043102]
[1771180447197,0.07287153,68614.0,68599.0,0.00043102]
[1771180447432,0.13173976,68616.0,68599.0,0.00043102]
[1771180447656,0.00013352,68618.0,68600.0,0.05953336]
[1771180447855,0.00013352,68618.0,68599.0,0.00043102]
[1771180447856,0.0228782,68616.0,68599.0,0.00043102]
[1771180448068,0.37322808,68615.0,68599.0,0.00043102]
[1771180448253,0.07287651,68610.0,68599.0,0.00043102]
[1771180448505,0.08174663,68615.0,68599.0,0.00043102]
[1771180448743,0.07287794,68608.0,68599.0,0.00043102]
[1771180449249,0.07271838,68607.0,68599.0,0.00043102]
[1771180449452,0.07287794,68608.0,68599.0,0.00043102]
[1771180449710,0.07287303,68613.0,68599.0,0.00043102]
[1771180449945,0.07287611,68610.0,68599.0,0.00043102]
[1771180450153,0.07287717,68609.0,68599.0,0.00043102]
[1771180450588,0.07287673,68609.0,68599.0,0.00043102]
[1771180450731,0.07287822,68608.0,68599.0,0.00043102]
[1771180450935,0.07287911,68607.0,68599.0,0.00043102]
[1771180451159,0.00013352,68608.0,68599.0,0.00043102]
[1771180451368,0.07287971,68607.0,68599.0,0.00043102]
[1771180451728,0.0728811,68605.0,68599.0,0.00043102]
[1771180451934,0.07288106,68605.0,68599.0,0.00043102]
[1771180452143,0.07287971,68607.0,68599.0,0.00043102]
[1771180452844,0.05886843,68613.0,68592.0,0.05973336]
[1771180452845,0.05886843,68604.0,68592.0,0.0002]
[1771180453048,0.07288775,68599.0,68592.0,0.00032933]
[1771180453228,0.00013352,68598.0,68592.0,0.00032933]
[1771180454001,0.02295346,68617.0,68592.0,0.00032933]
[1771180454201,0.0004,68627.0,68601.0,0.05801004]
[1771180454581,0.17388032,68660.0,68592.0,0.00032933]
[1771180454582,0.868544,68651.0,68629.0,0.05851004]
[1771180454758,0.92766142,68651.0,68630.0,0.2834]
[1771180454902,0.05911742,68651.0,68630.0,0.2834]
[1771180455113,0.02295346,68649.0,68614.0,0.05851004]
[1771180455309,0.57408385,68650.0,68613.0,0.02250268]
[1771180455310,0.05911742,68644.0,68616.0,0.29894]
[1771180455566,0.05911742,68644.0,68617.0,0.05851004]
[1771180455762,0.05911742,68644.0,68620.0,0.57408385]
[1771180456749,0.05911742,68644.0,68620.0,0.63259389]
[1771180457565,0.05911742,68644.0,68620.0,0.57408385]
[1771180457821,0.05911742,68644.0,68621.0,0.05851004]
[1771180458190,0.02295346,68646.0,68621.0,0.05851004]
[1771180458363,0.07283433,68649.0,68630.0,0.57408385]
[1771180458364,0.05911742,68649.0,68630.0,0.57408385]
[1771180458569,0.05911742,68644.0,68629.0,0.28356]
[1771180458969,0.05911742,68644.0,68617.0,0.00012933]
[1771180458970,0.07283639,68647.0,68617.0,0.28364933]
[1771180459200,0.07283639,68647.0,68596.0,0.03234816]
[1771180459201,0.07283639,68647.0,68536.0,0.32109015]
[1771180459202,0.02295346,68591.0,68536.0,0.32109015]
[1771180459367,0.0008304,68647.0,68551.0,0.08101272]
[1771180459368,0.868544,68589.0,68551.0,0.08101272]
[1771180459585,0.03506,68612.0,68550.0,0.57408385]
[1771180459586,0.267954,68595.0,68563.0,0.05851004]
[1771180459795,0.27356,68595.0,68572.0,0.05851004]
[1771180460638,0.34645168,68595.0,68572.0,0.05851004]
[1771180460835,0.34645168,68595.0,68572.0,0.05893951]
[1771180461053,0.2736984,68595.0,68572.0,0.05893951]
[1771180461666,0.57475824,68590.0,68572.0,0.00042947]
[1771180461814,0.03506,68582.0,68572.0,0.00042947]
[1771180462344,0.1079656,68582.0,68572.0,0.00042947]
[1771180462567,0.07290938,68579.0,68572.0,0.00133756]
[1771180462774,0.07290938,68579.0,68572.0,0.00042947]
[1771180462948,0.03506,68582.0,68560.0,0.00090809]
[1771180462949,0.07291625,68572.0,68560.0,0.05941813]
[1771180463197,0.00043003,68572.0,68560.0,0.00090809]
[1771180463428,0.00043003,68572.0,68534.0,0.08010401]
[1771180463429,0.02295346,68569.0,68536.0,0.1775]
[1771180463640,0.57475824,68570.0,68534.0,0.08010401]
[1771180463641,0.44044137,68568.0,68541.0,0.05851004]
[1771180463841,0.36752,68568.0,68541.0,0.05851004]
[1771180464045,0.07293231,68557.0,68541.0,0.05851004]
[1771180464253,0.36752,68568.0,68541.0,0.05851004]
[1771180464254,0.07293461,68555.0,68541.0,0.05851004]
[1771180464502,0.36752,68568.0,68541.0,0.05851004]
[1771180464503,0.29172225,68559.0,68541.0,0.05851004]
[1771180464720,0.36752,68568.0,68541.0,0.05851004]
[1771180464925,0.5977117,68560.0,68530.0,0.218131]
[1771180465126,0.29174121,68554.0,68532.0,0.05851004]
[1771180465442,0.274,68559.0,68532.0,0.05851004]
[1771180465652,0.07294251,68548.0,68532.0,0.05851004]
[1771180465850,0.07294087,68549.0,68532.0,0.05851004]
[1771180466051,0.07293842,68551.0,68532.0,0.05851004]
[1771180466279,0.61561713,68579.0,68528.0,0.27972]
[1771180466280,0.03234816,68579.0,68540.0,0.57475824]
[1771180466457,0.03234816,68579.0,68541.0,0.05851004]
[1771180466458,0.03506,68558.0,68541.0,0.05851004]
[1771180466874,0.03549003,68558.0,68541.0,0.05851004]
[1771180467648,0.03549003,68558.0,68541.0,0.04877459]
[1771180469048,0.07292232,68567.0,68533.0,0.35719736]
[1771180469049,0.09336,68579.0,68548.0,0.57475824]
[1771180469264,0.27364,68578.0,68553.0,0.07293572]
[1771180469465,0.049356,68575.0,68554.0,0.05851004]
[1771180469675,0.07230946,68580.0,68561.0,0.05851004]
[1771180470754,0.07230946,68580.0,68561.0,0.07292669]
[1771180470755,0.049356,68580.0,68561.0,0.07292669]
[1771180471002,0.049356,68582.0,68571.0,0.05851004]
[1771180471418,0.0934,68588.0,68560.0,0.57475824]
[1771180471612,0.049356,68587.0,68566.0,0.07292222]
[1771180472015,0.049356,68587.0,68567.0,0.07292102]
[1771180472334,0.049356,68589.0,68568.0,0.05851004]
[1771180472821,0.049356,68589.0,68570.0,0.57475824]
[1771180473032,0.0004,68590.0,68580.0,0.05851004]
[1771180473431,0.0004,68590.0,68570.0,0.57475824]
[1771180473617,0.0004,68590.0,68578.0,0.05851004]
[1771180473911,0.0004,68590.0,68578.0,0.07290962]
[1771180474075,0.0004,68590.0,68579.0,0.05851004]
[1771180477020,0.0004,68590.0,68572.0,0.0002]
[1771180477222,0.02295346,68588.0,68572.0,0.0002]
[1771180477801,0.07230946,68588.0,68572.0,0.0002]
[1771180478265,0.07230946,68588.0,68579.0,0.001]
[1771180478764,0.07230946,68588.0,68572.0,0.0002]
[1771180479367,0.049356,68588.0,68572.0,0.0002]
[1771180479598,0.57606644,68590.0,68572.0,0.0002]
[1771180479742,0.05911742,68586.0,68572.0,0.0002]
[1771180479963,0.29626166,68585.0,68572.0,0.0002]
[1771180480559,0.07290433,68584.0,68572.0,0.0002]
[1771180480767,0.02295346,68582.0,68572.0,0.0002]
[1771180480990,0.0009082,68581.0,68572.0,0.0002]
[1771180481736,0.02295346,68582.0,68572.0,0.0002]
[1771180483212,0.27276,68587.0,68573.0,0.05851004]
[1771180483380,0.2700388,68587.0,68573.0,0.05851004]
[1771180483614,0.2700388,68587.0,68572.0,0.0002]
[1771180484808,0.34293905,68587.0,68572.0,0.0002]
[1771180485019,0.34293908,68587.0,68572.0,0.0002]
[1771180485224,0.02359955,68586.0,68572.0,0.0002]
[1771180487981,0.02359955,68585.0,68572.0,0.0002]
[1771180492709,0.02359955,68585.0,68573.0,0.06521993]
[1771180492930,0.02359955,68585.0,68560.0,0.0002]
[1771180492931,0.57475824,68583.0,68558.0,1e-08]
[1771180493140,0.0013082,68590.0,68503.0,0.06878475]
[1771180493141,0.03708352,68532.0,68503.0,0.06878475]
[1771180493335,0.03708352,68532.0,68501.0,0.0005335]
[1771180493336,0.27428,68531.0,68514.0,0.06878475]
[1771180493535,0.27428,68531.0,68509.0,0.0233905]
[1771180493536,0.57475824,68530.0,68516.0,0.06878475]
[1771180493742,0.57475824,68530.0,68518.0,0.06878475]
[1771180494349,0.57488709,68530.0,68518.0,0.06878475]
[1771180494497,0.07296798,68524.0,68511.0,0.06878475]
[1771180494668,0.2744,68529.0,68513.0,0.06878475]
[1771180494868,0.64784825,68530.0,68515.0,0.06878475]
[1771180494869,0.07296314,68528.0,68515.0,0.06878475]
[1771180495069,0.072967,68525.0,68502.0,0.00142622]
[1771180495272,0.07296927,68522.0,68503.0,0.06878475]
[1771180495480,0.27452,68523.0,68505.0,0.06878475]
[1771180495697,0.02359955,68529.0,68507.0,0.06878475]
[1771180495698,0.27452,68524.0,68507.0,0.06878475]
[1771180495907,0.27452,68524.0,68509.0,0.06878475]
[1771180496148,0.27452,68525.0,68511.0,0.06878475]
[1771180496352,0.57475824,68520.0,68513.0,0.06878475]
[1771180496557,0.57475824,68520.0,68501.0,0.023924]
[1771180496558,0.57475824,68520.0,68502.0,0.00142597]
[1771180496816,0.27452,68520.0,68505.0,0.0002]
[1771180497014,0.27452,68520.0,68506.0,0.07021063]
[1771180497419,0.27496,68521.0,68506.0,0.07021063]
[1771180497624,9.64784786,68530.0,68507.0,0.06878475]
[1771180497625,9.00012885,68530.0,68507.0,0.06878475]
[1771180497829,9.00012885,68530.0,68505.0,0.0002]
[1771180497830,8.13751392,68530.0,68511.0,0.0233905]
[1771180498067,7.28924372,68530.0,68520.0,0.57475824]
[1771180498268,0.07975671,68581.0,68533.0,0.0228905]
[1771180498269,0.01526645,68560.0,68533.0,0.0228905]
[1771180498467,0.00779081,68560.0,68559.0,0.07292988]
[1771180498666,0.07001895,68590.0,68559.0,0.07292988]
[1771180498667,0.0004,68590.0,68574.0,0.29165342]
[1771180498878,0.06961895,68600.0,68554.0,0.00759175]
[1771180498879,0.09344,68614.0,68584.0,0.0233905]
[1771180499077,0.09344,68614.0,68565.0,0.03234816]
[1771180499078,0.06986051,68607.0,68586.0,0.0233905]
[1771180499296,1.5,68603.0,68590.0,0.57475824]
[1771180499506,0.02359955,68624.0,68590.0,0.57475824]
[1771180499714,1.5,68622.0,68600.0,0.57475824]
[1771180499952,1.5,68622.0,68593.0,0.06521993]
[1771180499953,0.06994051,68621.0,68593.0,0.06521993]
[1771180500156,0.06848291,68619.0,68590.0,0.64765488]
[1771180500357,0.06018269,68619.0,68591.0,0.251339]
[1771180500566,0.57475824,68610.0,68586.0,0.00012936]
[1771180500774,0.06682287,68607.0,68586.0,0.00012936]
[1771180500975,0.06682287,68607.0,68565.0,0.0934]
[1771180500976,0.57475824,68600.0,68565.0,0.0934]
[1771180501239,0.06682287,68598.0,68571.0,0.13946]
[1771180501415,0.06682287,68598.0,68570.0,0.57475824]
[1771180501627,1.49987064,68597.0,68570.0,0.57475824]
[1771180502043,0.06682287,68598.0,68570.0,0.57475824]
[1771180502266,0.13971343,68596.0,68570.0,0.57475824]
[1771180502419,0.06682287,68594.0,68561.0,0.28096]
[1771180502585,0.06682287,68594.0,68570.0,0.57475824]
[1771180503567,0.06682287,68584.0,68560.0,0.0934]
[1771180503699,0.57475824,68590.0,68550.0,0.57475824]
[1771180503700,0.06682287,68581.0,68550.0,0.57475824]
[1771180503901,0.02359955,68582.0,68550.0,0.57475824]
[1771180504100,0.02359955,68578.0,68547.0,0.28092]
[1771180504303,0.06682287,68576.0,68547.0,0.28092]
[1771180504570,0.13973565,68576.0,68547.0,0.28092]
[1771180504770,0.02450775,68578.0,68547.0,0.28092]
[1771180504771,0.06682287,68575.0,68547.0,0.3538625]
[1771180505018,0.06682287,68575.0,68548.0,0.136176]
[1771180505330,0.06682287,68575.0,68548.0,0.00043003]
[1771180505549,0.06632287,68575.0,68548.0,0.00043003]
[1771180505778,0.06582287,68575.0,68548.0,0.00043003]
[1771180505980,0.27708,68574.0,68548.0,0.00043003]
[1771180506189,0.06662287,68573.0,68548.0,0.00043003]
[1771180506816,0.06662287,68573.0,68550.0,0.57475824]
[1771180507236,0.06662287,68573.0,68549.0,0.07294013]
[1771180507560,1.49987064,68572.0,68548.0,0.07337144]
[1771180507782,0.06662287,68571.0,68548.0,0.07337144]
[1771180508443,0.27704,68570.0,68532.0,0.0002]
[1771180508655,0.27704,68570.0,68490.0,0.57475824]
[1771180508656,0.02359955,68521.0,68490.0,0.57475824]
[1771180508864,0.07297546,68517.0,68490.0,0.57475824]
[1771180509068,0.02286,68524.0,68507.0,0.57475824]
[1771180509069,1.49987064,68516.0,68507.0,0.57475824]
[1771180509274,0.02286,68524.0,68508.0,0.06521993]
[1771180509481,1.49885842,68523.0,68508.0,0.06521993]
[1771180509676,1.49885842,68523.0,68500.0,0.57475824]
[1771180509892,1.49928898,68523.0,68499.0,0.0233905]
[1771180510694,0.71165586,68530.0,68496.0,0.21628]
[1771180510695,0.07122598,68557.0,68515.0,0.0233905]
[1771180510891,0.02359955,68559.0,68523.0,0.06521993]
[1771180510892,0.27932,68556.0,68523.0,0.06521993]
[1771180511210,0.27932,68556.0,68524.0,0.163618]
[1771180511211,0.57475824,68550.0,68524.0,0.163618]
[1771180511420,0.07122598,68552.0,68524.0,0.163618]
[1771180511755,0.07122598,68552.0,68515.0,0.00043056]
[1771180511756,0.57475824,68550.0,68515.0,0.00043056]
[1771180511962,0.07295679,68534.0,68515.0,0.00063056]
[1771180512103,0.07295679,68534.0,68516.0,0.107381]
[1771180512302,0.27968,68538.0,68516.0,0.107381]
[1771180512522,1.21035737,68537.0,68515.0,0.00063056]
[1771180512719,0.07296303,68528.0,68515.0,0.00063056]
[1771180513150,1.2833204,68528.0,68515.0,0.00063056]
[1771180513374,1.21035737,68528.0,68515.0,0.00063056]
[1771180513577,0.18026724,68527.0,68515.0,0.00063056]
[1771180513744,0.10730287,68526.0,68515.0,0.00063056]
[1771180513951,0.07296703,68525.0,68515.0,0.00063056]
[1771180514403,0.18026789,68526.0,68515.0,0.00063056]
[1771180514559,1.21035737,68525.0,68515.0,0.00063056]
[1771180515084,1.28332373,68525.0,68515.0,0.00063056]
[1771180515284,1.21035737,68525.0,68515.0,0.00063056]
[1771180515489,1.21035737,68525.0,68508.0,0.0002]
[1771180515490,0.07296715,68524.0,68508.0,0.0002]
[1771180515686,0.07296715,68524.0,68479.0,0.07210393]
[1771180515687,0.07299673,68497.0,68470.0,0.57475824]
[1771180515898,0.28072,68497.0,68473.0,0.326772]
[1771180516095,0.28072,68497.0,68475.0,0.320163]
[1771180516343,0.28072,68497.0,68475.0,0.11757585]
[1771180517083,0.28072,68497.0,68470.0,0.57475824]
[1771180517084,1.21035737,68496.0,68470.0,0.57475824]
[1771180517283,1.21035737,68496.0,68471.0,0.11757585]
[1771180517582,0.07299756,68496.0,68471.0,0.11757585]
[1771180517730,1.21035737,68495.0,68471.0,0.11757585]
[1771180517933,1.21035737,68495.0,68467.0,0.07302765]
[1771180517934,1.21035737,68495.0,68467.0,0.28156]
[1771180518136,1.21035737,68495.0,68468.0,0.11757585]
[1771180518710,1.21035737,68495.0,68468.0,0.19060249]
[1771180518912,1.21035737,68495.0,68467.0,0.28156]
[1771180518913,0.0004303,68497.0,68480.0,0.57475824]
[1771180519118,0.28112,68511.0,68487.0,0.64776474]
[1771180519338,0.28112,68511.0,68487.0,0.0004303]
[1771180519572,0.27099777,68511.0,68487.0,0.0004303]
[1771180519774,0.26094777,68511.0,68487.0,0.0004303]
[1771180519980,0.25082555,68511.0,68487.0,0.0004303]
[1771180520201,0.24070333,68511.0,68490.0,0.57610972]
[1771180520413,0.90633651,68510.0,68490.0,0.57610972]
[1771180520625,0.90633651,68510.0,68487.0,0.0004303]
[1771180520882,1.48244623,68510.0,68487.0,0.0004303]
[1771180521105,0.10730287,68499.0,68476.0,0.07301765]
[1771180521327,0.38885317,68499.0,68474.0,0.07301936]
[1771180521543,0.38885317,68499.0,68477.0,0.07301697]
[1771180521544,0.90633651,68498.0,68477.0,0.07301697]
[1771180521772,0.90633651,68498.0,68474.0,0.07345241]
[1771180521979,0.97933233,68498.0,68474.0,0.000432]
[1771180522179,1.01363938,68498.0,68474.0,0.000432]
[1771180522602,0.10730287,68497.0,68474.0,0.000432]
[1771180523002,0.90633651,68498.0,68474.0,0.000432]
[1771180523003,0.10730287,68493.0,68474.0,0.000432]
[1771180523204,0.90633651,68492.0,68472.0,0.479512]
[1771180523439,0.2815503,68499.0,68474.0,0.07302025]
[1771180523647,0.90633651,68498.0,68473.0,0.07301938]
[1771180523848,0.90633651,68498.0,68480.0,0.57610972]
[1771180524069,0.89621429,68498.0,68482.0,0.07301161]
[1771180524915,0.1802851,68510.0,68480.0,0.57610972]
[1771180524916,0.00032415,68511.0,68488.0,0.57610972]